[Event "Titled Tuesday Blitz March 07 Early 2023"]
[White "Kirillov, Dmitry"]
[Black "Kho, Darrell"]
[WhiteFideId "34180572"]
[BlackFideId "1019317"]
[WhiteElo "2111"]
[BlackElo "2166"]
[Result "0-1"]
[Round "05"]
[TimeControl "180+2"]
[Date "2023.03.07"]
[WhiteClock "0:00:02"]
[BlackClock "0:00:29"]

1. e4 {[%clk 0:02:46]}  e6 {[%clk 0:03:00]} 2. d4 {[%clk 0:02:45]}  d5 {[%clk 0:03:00]} 3. Nd2 {[%clk 0:02:46]}  Be7 {[%clk 0:03:00]} 4. Ngf3 {[%clk 0:02:42]}  Nf6 {[%clk 0:02:58]} 5. e5 {[%clk 0:02:35]}  Nfd7 {[%clk 0:02:58]} 6. c3 {[%clk 0:02:35]}  c5 {[%clk 0:02:58]} 7. Bd3 {[%clk 0:02:06]}  b6 {[%clk 0:02:57]} 8. O-O {[%clk 0:01:56]}  Ba6 {[%clk 0:02:51]} 9. Bxa6 {[%clk 0:01:56]}  Nxa6 {[%clk 0:02:51]} 10. Ne1 {[%clk 0:01:44]}  cxd4 {[%clk 0:02:32]} 11. cxd4 {[%clk 0:01:42]}  b5 {[%clk 0:02:30]} 12. Qe2 {[%clk 0:01:38]}  Qb6 {[%clk 0:02:25]} 13. Nb3 {[%clk 0:01:30]}  Nb4 {[%clk 0:02:04]} 14. Be3 {[%clk 0:01:20]}  O-O {[%clk 0:01:42]} 15. a3 {[%clk 0:01:16]}  Nc6 {[%clk 0:01:40]} 16. Nd3 {[%clk 0:01:15]}  Rfc8 {[%clk 0:01:32]} 17. f4 {[%clk 0:01:11]}  f5 {[%clk 0:01:25]} 18. Nbc5 {[%clk 0:01:11]}  Nxc5 {[%clk 0:01:19]} 19. Nxc5 {[%clk 0:01:08]}  Nxd4 {[%clk 0:01:15]} 20. Bxd4 {[%clk 0:00:44]}  Bxc5 {[%clk 0:01:15]} 21. Bxc5 {[%clk 0:00:44]}  Qxc5+ {[%clk 0:01:13]} 22. Rf2 {[%clk 0:00:44]}  Rc6 {[%clk 0:00:51]} 23. Rd1 {[%clk 0:00:36]}  Rac8 {[%clk 0:00:50]} 24. Re1 {[%clk 0:00:31]}  Qb6 {[%clk 0:00:47]} 25. Qd3 {[%clk 0:00:28]}  Rc2 {[%clk 0:00:43]} 26. Qf3 {[%clk 0:00:03]}  Rxb2 {[%clk 0:00:30]} 27. Kf1 {[%clk 0:00:01]}  Rxf2+ {[%clk 0:00:29]} 28. Qxf2 {[%clk 0:00:01]}  Qxf2+ {[%clk 0:00:29]} 29. Kxf2 {[%clk 0:00:02]}  Rc2+ {[%clk 0:00:29]} 30. Kf3 {[%clk 0:00:02]}  Rc3+ {[%clk 0:00:29]} 0-1


[Site "https://www.chess.com"]

[Event "Titled Tuesday Blitz March 07 Early 2023"]
[White "Kostiukov, Alexandr"]
[Black "Michalski, Olaf"]
[WhiteFideId "14108100"]
[BlackFideId "1106740"]
[WhiteElo "2202"]
[BlackElo "2173"]
[Result "1/2-1/2"]
[Round "05"]
[TimeControl "180+2"]
[Date "2023.03.07"]
[WhiteClock "0:00:44"]
[BlackClock "0:00:19"]

1. g3 {[%clk 0:03:00]}  Nf6 {[%clk 0:02:51]} 2. Bg2 {[%clk 0:02:59]}  d5 {[%clk 0:02:49]} 3. d3 {[%clk 0:02:58]}  c6 {[%clk 0:02:46]} 4. e4 {[%clk 0:02:58]}  dxe4 {[%clk 0:02:45]} 5. dxe4 {[%clk 0:02:58]}  Qxd1+ {[%clk 0:02:45]} 6. Kxd1 {[%clk 0:02:59]}  e5 {[%clk 0:02:37]} 7. f3 {[%clk 0:02:59]}  Be6 {[%clk 0:02:31]} 8. Nd2 {[%clk 0:02:54]}  Nfd7 {[%clk 0:02:24]} 9. Bh3 {[%clk 0:02:52]}  Bxh3 {[%clk 0:02:23]} 10. Nxh3 {[%clk 0:02:53]}  f6 {[%clk 0:02:22]} 11. Nb3 {[%clk 0:02:48]}  Nc5 {[%clk 0:02:19]} 12. Nxc5 {[%clk 0:02:47]}  Bxc5 {[%clk 0:02:18]} 13. Ke2 {[%clk 0:02:48]}  h5 {[%clk 0:02:10]} 14. Be3 {[%clk 0:02:44]}  Nd7 {[%clk 0:02:02]} 15. Nf2 {[%clk 0:02:40]}  h4 {[%clk 0:02:02]} 16. g4 {[%clk 0:02:40]}  O-O-O {[%clk 0:01:49]} 17. Nd3 {[%clk 0:02:33]}  Bxe3 {[%clk 0:01:45]} 18. Kxe3 {[%clk 0:02:34]}  Nf8 {[%clk 0:01:39]} 19. a4 {[%clk 0:02:32]}  Ne6 {[%clk 0:01:38]} 20. c3 {[%clk 0:02:32]}  Rd7 {[%clk 0:01:26]} 21. Rhd1 {[%clk 0:02:01]}  Rhd8 {[%clk 0:01:21]} 22. Nf2 {[%clk 0:02:00]}  Nf4 {[%clk 0:01:05]} 23. Rxd7 {[%clk 0:01:56]}  Rxd7 {[%clk 0:01:05]} 24. Rg1 {[%clk 0:01:53]}  g5 {[%clk 0:00:56]} 25. Rd1 {[%clk 0:01:41]}  Rxd1 {[%clk 0:00:54]} 26. Nxd1 {[%clk 0:01:42]}  Kc7 {[%clk 0:00:54]} 27. b4 {[%clk 0:01:39]}  Kb6 {[%clk 0:00:42]} 28. Nb2 {[%clk 0:01:37]}  Kc7 {[%clk 0:00:37]} 29. a5 {[%clk 0:01:36]}  b5 {[%clk 0:00:32]} 30. c4 {[%clk 0:01:20]}  a6 {[%clk 0:00:30]} 31. cxb5 {[%clk 0:01:16]}  cxb5 {[%clk 0:00:30]} 32. Nd1 {[%clk 0:01:14]}  Kd6 {[%clk 0:00:29]} 33. Nc3 {[%clk 0:01:11]}  Kc6 {[%clk 0:00:27]} 34. Kd2 {[%clk 0:01:01]}  Kd6 {[%clk 0:00:26]} 35. Nd1 {[%clk 0:01:00]}  Kc6 {[%clk 0:00:24]} 36. Ne3 {[%clk 0:01:01]}  Kd6 {[%clk 0:00:23]} 37. Nf5+ {[%clk 0:01:01]}  Ke6 {[%clk 0:00:22]} 38. Ng7+ {[%clk 0:00:57]}  Kf7 {[%clk 0:00:22]} 39. Nf5 {[%clk 0:00:58]}  Ke6 {[%clk 0:00:22]} 40. Ke3 {[%clk 0:00:50]}  Ng6 {[%clk 0:00:19]} 41. Kd2 {[%clk 0:00:44]}  Nf4 {[%clk 0:00:19]} 1/2-1/2


[Site "https://www.chess.com"]

[Event "Titled Tuesday Blitz March 07 Early 2023"]
[White "ritanovikova"]
[Black "Fathy, Elameir"]
[BlackFideId "10600396"]
[WhiteElo "2133"]
[BlackElo "2311"]
[Result "0-1"]
[Round "05"]
[TimeControl "180+2"]
[Date "2023.03.07"]
[WhiteClock "0:00:05"]
[BlackClock "0:00:48"]

1. e4 {[%clk 0:02:06]}  c6 {[%clk 0:02:42]} 2. d4 {[%clk 0:01:56]}  d5 {[%clk 0:02:35]} 3. exd5 {[%clk 0:01:57]}  cxd5 {[%clk 0:02:29]} 4. Nf3 {[%clk 0:01:41]}  Nf6 {[%clk 0:02:26]} 5. Be2 {[%clk 0:01:27]}  Nc6 {[%clk 0:02:25]} 6. c3 {[%clk 0:01:27]}  Bf5 {[%clk 0:02:26]} 7. h3 {[%clk 0:01:27]}  e6 {[%clk 0:02:26]} 8. O-O {[%clk 0:01:27]}  Bd6 {[%clk 0:02:26]} 9. Re1 {[%clk 0:01:26]}  O-O {[%clk 0:02:25]} 10. Nbd2 {[%clk 0:01:26]}  a6 {[%clk 0:02:22]} 11. Nf1 {[%clk 0:01:26]}  b5 {[%clk 0:02:21]} 12. Bg5 {[%clk 0:01:26]}  Be7 {[%clk 0:02:10]} 13. Bd3 {[%clk 0:01:24]}  Bg6 {[%clk 0:02:08]} 14. Bxg6 {[%clk 0:01:24]}  hxg6 {[%clk 0:02:09]} 15. Ne5 {[%clk 0:01:23]}  Nxe5 {[%clk 0:02:07]} 16. dxe5 {[%clk 0:01:23]}  Nd7 {[%clk 0:02:08]} 17. Bxe7 {[%clk 0:01:23]}  Qxe7 {[%clk 0:02:09]} 18. Qe2 {[%clk 0:01:22]}  Nb6 {[%clk 0:02:01]} 19. b3 {[%clk 0:01:01]}  Rfc8 {[%clk 0:02:01]} 20. Rac1 {[%clk 0:01:01]}  Rc7 {[%clk 0:01:58]} 21. f4 {[%clk 0:01:00]}  Rac8 {[%clk 0:01:58]} 22. Qf3 {[%clk 0:01:00]}  Qa3 {[%clk 0:01:56]} 23. Qf2 {[%clk 0:00:55]}  Qc5 {[%clk 0:01:48]} 24. Nd2 {[%clk 0:00:39]}  Qxf2+ {[%clk 0:01:47]} 25. Kxf2 {[%clk 0:00:40]}  Rxc3 {[%clk 0:01:48]} 26. Rxc3 {[%clk 0:00:37]}  Rxc3 {[%clk 0:01:49]} 27. Ra1 {[%clk 0:00:33]}  Kf8 {[%clk 0:01:46]} 28. Ke2 {[%clk 0:00:33]}  Ke7 {[%clk 0:01:46]} 29. Nf3 {[%clk 0:00:33]}  Rc2+ {[%clk 0:01:42]} 30. Kf1 {[%clk 0:00:33]}  Kd7 {[%clk 0:01:40]} 31. Nd4 {[%clk 0:00:33]}  Rc8 {[%clk 0:01:37]} 32. Ke2 {[%clk 0:00:32]}  Rc7 {[%clk 0:01:26]} 33. Kd3 {[%clk 0:00:31]}  Nc8 {[%clk 0:01:26]} 34. g4 {[%clk 0:00:28]}  Na7 {[%clk 0:01:26]} 35. Rf1 {[%clk 0:00:27]}  Nc6 {[%clk 0:01:24]} 36. Nc2 {[%clk 0:00:24]}  a5 {[%clk 0:01:22]} 37. a3 {[%clk 0:00:23]}  Ke7 {[%clk 0:01:15]} 38. Kd2 {[%clk 0:00:21]}  Rc8 {[%clk 0:01:13]} 39. Re1 {[%clk 0:00:19]}  Rh8 {[%clk 0:01:13]} 40. Re3 {[%clk 0:00:19]}  Rc8 {[%clk 0:01:12]} 41. Rf3 {[%clk 0:00:18]}  g5 {[%clk 0:01:09]} 42. fxg5 {[%clk 0:00:15]}  Nxe5 {[%clk 0:01:09]} 43. Re3 {[%clk 0:00:15]}  Nc6 {[%clk 0:01:06]} 44. Kd3 {[%clk 0:00:14]}  e5 {[%clk 0:01:05]} 45. Ne1 {[%clk 0:00:12]}  Kd6 {[%clk 0:01:05]} 46. h4 {[%clk 0:00:11]}  b4 {[%clk 0:01:03]} 47. a4 {[%clk 0:00:11]}  e4+ {[%clk 0:01:02]} 48. Kd2 {[%clk 0:00:10]}  Ne5 {[%clk 0:01:03]} 49. h5 {[%clk 0:00:08]}  Nxg4 {[%clk 0:01:03]} 50. Rh3 {[%clk 0:00:08]}  d4 {[%clk 0:01:02]} 51. h6 {[%clk 0:00:08]}  gxh6 {[%clk 0:00:57]} 52. gxh6 {[%clk 0:00:09]}  Rh8 {[%clk 0:00:57]} 53. h7 {[%clk 0:00:09]}  Nf6 {[%clk 0:00:57]} 54. Rh6 {[%clk 0:00:08]}  Ke6 {[%clk 0:00:55]} 55. Ng2 {[%clk 0:00:07]}  Rxh7 {[%clk 0:00:56]} 56. Rxh7 {[%clk 0:00:07]}  Nxh7 {[%clk 0:00:56]} 57. Nf4+ {[%clk 0:00:06]}  Kd6 {[%clk 0:00:55]} 58. Nh5 {[%clk 0:00:06]}  f5 {[%clk 0:00:54]} 59. Ng7 {[%clk 0:00:06]}  Ke5 {[%clk 0:00:54]} 60. Ne8 {[%clk 0:00:06]}  e3+ {[%clk 0:00:52]} 61. Kd3 {[%clk 0:00:06]}  Nf6 {[%clk 0:00:51]} 62. Nc7 {[%clk 0:00:05]}  Nd5 {[%clk 0:00:50]} 63. Nb5 {[%clk 0:00:05]}  Nf4+ {[%clk 0:00:51]} 64. Kc4 {[%clk 0:00:04]}  e2 {[%clk 0:00:51]} 65. Nxd4 {[%clk 0:00:04]}  Ke4 {[%clk 0:00:49]} 66. Nc2 {[%clk 0:00:01]}  Nd3 {[%clk 0:00:48]} 67. Kb5 {[%clk 0:00:01]}  e1=Q {[%clk 0:00:46]} 68. Nxe1 {[%clk 0:00:02]}  Nxe1 {[%clk 0:00:46]} 69. Kxa5 {[%clk 0:00:03]}  f4 {[%clk 0:00:46]} 70. Kxb4 {[%clk 0:00:03]}  f3 {[%clk 0:00:47]} 71. Kc3 {[%clk 0:00:04]}  f2 {[%clk 0:00:47]} 72. Kd2 {[%clk 0:00:05]}  f1=Q {[%clk 0:00:48]} 0-1


[Site "https://www.chess.com"]

[Event "Titled Tuesday Blitz March 07 Early 2023"]
[White "Larina, Maria"]
[Black "Buscar, Michael"]
[WhiteFideId "24113182"]
[BlackFideId "2603616"]
[WhiteElo "1848"]
[BlackElo "2010"]
[Result "1-0"]
[Round "05"]
[TimeControl "180+2"]
[Date "2023.03.07"]
[WhiteClock "0:00:42"]
[BlackClock "0:00:57"]

1. e4 {[%clk 0:03:00]}  c5 {[%clk 0:02:57]} 2. Nc3 {[%clk 0:02:59]}  Nc6 {[%clk 0:02:53]} 3. g3 {[%clk 0:02:59]}  g6 {[%clk 0:02:53]} 4. Bg2 {[%clk 0:02:59]}  Bg7 {[%clk 0:02:54]} 5. d3 {[%clk 0:02:59]}  Nf6 {[%clk 0:02:51]} 6. Be3 {[%clk 0:02:50]}  d6 {[%clk 0:02:49]} 7. h3 {[%clk 0:02:50]}  O-O {[%clk 0:02:47]} 8. Qd2 {[%clk 0:02:50]}  Ne8 {[%clk 0:02:43]} 9. Nge2 {[%clk 0:02:49]}  Nd4 {[%clk 0:02:41]} 10. O-O {[%clk 0:02:46]}  Nc7 {[%clk 0:02:38]} 11. Nd1 {[%clk 0:02:45]}  Nce6 {[%clk 0:02:35]} 12. c3 {[%clk 0:02:43]}  Nxe2+ {[%clk 0:02:33]} 13. Qxe2 {[%clk 0:02:43]}  Rb8 {[%clk 0:02:32]} 14. f4 {[%clk 0:02:42]}  f5 {[%clk 0:02:26]} 15. g4 {[%clk 0:02:37]}  b5 {[%clk 0:02:13]} 16. exf5 {[%clk 0:02:15]}  gxf5 {[%clk 0:02:13]} 17. gxf5 {[%clk 0:02:02]}  Rxf5 {[%clk 0:02:11]} 18. Be4 {[%clk 0:02:01]}  Rf8 {[%clk 0:02:04]} 19. f5 {[%clk 0:01:57]}  Nc7 {[%clk 0:02:00]} 20. d4 {[%clk 0:01:25]}  Bb7 {[%clk 0:01:51]} 21. Qg2 {[%clk 0:01:15]}  Bxe4 {[%clk 0:01:48]} 22. Qxe4 {[%clk 0:01:16]}  d5 {[%clk 0:01:37]} 23. Qf3 {[%clk 0:01:15]}  cxd4 {[%clk 0:01:35]} 24. Bxd4 {[%clk 0:01:12]}  Bxd4+ {[%clk 0:01:34]} 25. cxd4 {[%clk 0:01:13]}  Kh8 {[%clk 0:01:21]} 26. Kh1 {[%clk 0:01:14]}  Qd6 {[%clk 0:01:17]} 27. Ne3 {[%clk 0:01:11]}  Rg8 {[%clk 0:01:08]} 28. Rg1 {[%clk 0:01:10]}  Rbf8 {[%clk 0:01:08]} 29. Ng4 {[%clk 0:01:02]}  Ne6 {[%clk 0:01:03]} 30. Ne5 {[%clk 0:00:50]}  Nxd4 {[%clk 0:00:58]} 31. Rxg8+ {[%clk 0:00:49]}  Kxg8 {[%clk 0:00:59]} 32. Qg4+ {[%clk 0:00:44]}  Kh8 {[%clk 0:00:58]} 33. Qxd4 {[%clk 0:00:42]}  Rf6 {[%clk 0:00:57]} 34. Nf7+ {[%clk 0:00:42]} 1-0


[Site "https://www.chess.com"]

[Event "Titled Tuesday Blitz March 07 Early 2023"]
[White "Sovetbekova, Nurai"]
[Black "Pissama Ntsaou, Martial"]
[WhiteFideId "13801910"]
[BlackFideId "17400864"]
[WhiteElo "1857"]
[BlackElo "2072"]
[Result "1-0"]
[Round "05"]
[TimeControl "180+2"]
[Date "2023.03.07"]
[WhiteClock "0:00:26"]
[BlackClock "0:00:03"]

1. d4 {[%clk 0:03:00]}  d5 {[%clk 0:02:58]} 2. c4 {[%clk 0:03:00]}  c6 {[%clk 0:02:58]} 3. Nf3 {[%clk 0:03:00]}  Nf6 {[%clk 0:02:58]} 4. g3 {[%clk 0:02:59]}  Bf5 {[%clk 0:02:46]} 5. Nc3 {[%clk 0:02:57]}  dxc4 {[%clk 0:02:45]} 6. Bg2 {[%clk 0:02:49]}  Nbd7 {[%clk 0:02:45]} 7. a4 {[%clk 0:02:47]}  a5 {[%clk 0:02:44]} 8. O-O {[%clk 0:02:41]}  e6 {[%clk 0:02:44]} 9. Nd2 {[%clk 0:02:39]}  Nb6 {[%clk 0:02:42]} 10. e4 {[%clk 0:02:39]}  Bg6 {[%clk 0:02:41]} 11. e5 {[%clk 0:02:32]}  Nfd5 {[%clk 0:02:40]} 12. Nde4 {[%clk 0:02:31]}  Be7 {[%clk 0:02:29]} 13. Qe2 {[%clk 0:02:14]}  O-O {[%clk 0:02:28]} 14. Rd1 {[%clk 0:02:07]}  Qc7 {[%clk 0:02:27]} 15. Bd2 {[%clk 0:01:59]}  Rfd8 {[%clk 0:02:16]} 16. h4 {[%clk 0:01:50]}  h6 {[%clk 0:02:09]} 17. Rac1 {[%clk 0:01:42]}  Rac8 {[%clk 0:02:08]} 18. Nb1 {[%clk 0:01:29]}  Nxa4 {[%clk 0:02:06]} 19. Qxc4 {[%clk 0:01:24]}  b5 {[%clk 0:02:01]} 20. Qb3 {[%clk 0:01:22]}  Qb6 {[%clk 0:01:38]} 21. Na3 {[%clk 0:01:16]}  Bxe4 {[%clk 0:01:28]} 22. Bxe4 {[%clk 0:01:14]}  Bxa3 {[%clk 0:01:21]} 23. bxa3 {[%clk 0:01:11]}  Rd7 {[%clk 0:01:02]} 24. Bb1 {[%clk 0:01:08]}  c5 {[%clk 0:00:56]} 25. dxc5 {[%clk 0:00:48]}  Nxc5 {[%clk 0:00:56]} 26. Qc2 {[%clk 0:00:48]}  g6 {[%clk 0:00:49]} 27. h5 {[%clk 0:00:48]}  Ne7 {[%clk 0:00:31]} 28. Bxh6 {[%clk 0:00:37]}  Rxd1+ {[%clk 0:00:26]} 29. Rxd1 {[%clk 0:00:34]}  Nd7 {[%clk 0:00:16]} 30. Qe2 {[%clk 0:00:30]}  Nf5 {[%clk 0:00:13]} 31. Bxf5 {[%clk 0:00:28]}  exf5 {[%clk 0:00:12]} 32. Rxd7 {[%clk 0:00:28]}  Rc1+ {[%clk 0:00:12]} 33. Bxc1 {[%clk 0:00:28]}  Qc6 {[%clk 0:00:12]} 34. Rd8+ {[%clk 0:00:26]}  Kg7 {[%clk 0:00:12]} 35. Qd2 {[%clk 0:00:26]}  g5 {[%clk 0:00:11]} 36. Qxg5+ {[%clk 0:00:26]}  Kh7 {[%clk 0:00:11]} 37. Qxf5+ {[%clk 0:00:27]}  Kg7 {[%clk 0:00:10]} 38. h6+ {[%clk 0:00:27]}  Qxh6 {[%clk 0:00:01]} 39. Bxh6+ {[%clk 0:00:26]}  Kxh6 {[%clk 0:00:02]} 40. Qf6+ {[%clk 0:00:27]}  Kh5 {[%clk 0:00:02]} 41. Rh8+ {[%clk 0:00:26]}  Kg4 {[%clk 0:00:03]} 42. Qf4# {[%clk 0:00:26]} 1-0


[Site "https://www.chess.com"]

[Event "Titled Tuesday Blitz March 07 Early 2023"]
[White "Liu, Kelsey"]
[Black "Tsatsalashvili, Keti"]
[WhiteFideId "30944481"]
[BlackFideId "13603434"]
[WhiteElo "2302"]
[BlackElo "2220"]
[Result "0-1"]
[Round "05"]
[TimeControl "180+2"]
[Date "2023.03.07"]
[WhiteClock "0:00:02"]
[BlackClock "0:00:42"]

1. e4 {[%clk 0:02:56]}  c5 {[%clk 0:02:57]} 2. Nf3 {[%clk 0:02:53]}  d6 {[%clk 0:02:57]} 3. Nc3 {[%clk 0:02:52]}  Nf6 {[%clk 0:02:54]} 4. e5 {[%clk 0:02:51]}  dxe5 {[%clk 0:02:54]} 5. Nxe5 {[%clk 0:02:52]}  Nbd7 {[%clk 0:02:50]} 6. d4 {[%clk 0:02:51]}  Nxe5 {[%clk 0:02:48]} 7. dxe5 {[%clk 0:02:52]}  Qxd1+ {[%clk 0:02:48]} 8. Kxd1 {[%clk 0:02:52]}  Ng4 {[%clk 0:02:49]} 9. Bb5+ {[%clk 0:02:51]}  Bd7 {[%clk 0:02:48]} 10. e6 {[%clk 0:02:52]}  fxe6 {[%clk 0:02:43]} 11. Ke2 {[%clk 0:02:41]}  O-O-O {[%clk 0:02:32]} 12. Bf4 {[%clk 0:02:16]}  g6 {[%clk 0:02:15]} 13. h3 {[%clk 0:01:58]}  Nf6 {[%clk 0:02:14]} 14. Rad1 {[%clk 0:01:37]}  Bg7 {[%clk 0:02:02]} 15. Bxd7+ {[%clk 0:01:28]}  Rxd7 {[%clk 0:02:00]} 16. Nb5 {[%clk 0:01:28]}  a6 {[%clk 0:01:38]} 17. Rxd7 {[%clk 0:01:00]}  Kxd7 {[%clk 0:01:15]} 18. Rd1+ {[%clk 0:01:00]}  Nd5 {[%clk 0:01:15]} 19. c4 {[%clk 0:00:39]}  axb5 {[%clk 0:01:14]} 20. cxd5 {[%clk 0:00:40]}  exd5 {[%clk 0:01:15]} 21. Rxd5+ {[%clk 0:00:39]}  Kc6 {[%clk 0:01:16]} 22. Rd2 {[%clk 0:00:36]}  Bd4 {[%clk 0:01:11]} 23. b4 {[%clk 0:00:33]}  e5 {[%clk 0:01:09]} 24. Bg3 {[%clk 0:00:29]}  c4 {[%clk 0:01:05]} 25. f4 {[%clk 0:00:21]}  Re8 {[%clk 0:01:01]} 26. Kf3 {[%clk 0:00:19]}  e4+ {[%clk 0:01:00]} 27. Kg4 {[%clk 0:00:17]}  Bf6 {[%clk 0:00:57]} 28. f5 {[%clk 0:00:14]}  h5+ {[%clk 0:00:55]} 29. Kf4 {[%clk 0:00:10]}  Be5+ {[%clk 0:00:56]} 30. Kg5 {[%clk 0:00:10]}  Bxg3 {[%clk 0:00:56]} 31. fxg6 {[%clk 0:00:10]}  e3 {[%clk 0:00:53]} 32. Re2 {[%clk 0:00:10]}  Bf2 {[%clk 0:00:50]} 33. g7 {[%clk 0:00:09]}  Kd5 {[%clk 0:00:49]} 34. Kf6 {[%clk 0:00:09]}  Kd4 {[%clk 0:00:46]} 35. Kf7 {[%clk 0:00:09]}  Rc8 {[%clk 0:00:46]} 36. g4 {[%clk 0:00:02]}  hxg4 {[%clk 0:00:45]} 37. hxg4 {[%clk 0:00:03]}  Kd3 {[%clk 0:00:43]} 38. Rxe3+ {[%clk 0:00:03]}  Bxe3 {[%clk 0:00:43]} 39. g8=Q {[%clk 0:00:01]}  Rxg8 {[%clk 0:00:42]} 40. Kxg8 {[%clk 0:00:02]}  c3 {[%clk 0:00:42]} 0-1


[Site "https://www.chess.com"]

[Event "Titled Tuesday Blitz March 07 Early 2023"]
[White "Nan, M K Khine Hlyan"]
[Black "Vanek, Tomas"]
[WhiteFideId "13002899"]
[BlackFideId "313459"]
[WhiteElo "1943"]
[BlackElo "2052"]
[Result "0-1"]
[Round "05"]
[TimeControl "180+2"]
[Date "2023.03.07"]
[WhiteClock "0:01:10"]
[BlackClock "0:01:38"]

1. e4 {[%clk 0:02:54]}  c5 {[%clk 0:02:58]} 2. Nf3 {[%clk 0:02:52]}  Nc6 {[%clk 0:02:56]} 3. d4 {[%clk 0:02:53]}  cxd4 {[%clk 0:02:53]} 4. Nxd4 {[%clk 0:02:53]}  Nf6 {[%clk 0:02:53]} 5. Nc3 {[%clk 0:02:50]}  e5 {[%clk 0:02:52]} 6. Ndb5 {[%clk 0:02:49]}  d6 {[%clk 0:02:51]} 7. Bg5 {[%clk 0:02:47]}  a6 {[%clk 0:02:51]} 8. Na3 {[%clk 0:02:46]}  b5 {[%clk 0:02:48]} 9. Nd5 {[%clk 0:02:46]}  Be7 {[%clk 0:02:47]} 10. Bxf6 {[%clk 0:02:44]}  Bxf6 {[%clk 0:02:47]} 11. c3 {[%clk 0:02:44]}  Ne7 {[%clk 0:02:39]} 12. Nc2 {[%clk 0:02:39]}  Nxd5 {[%clk 0:02:36]} 13. Qxd5 {[%clk 0:02:37]}  Be6 {[%clk 0:02:33]} 14. Qc6+ {[%clk 0:02:35]}  Kf8 {[%clk 0:02:30]} 15. Rd1 {[%clk 0:02:20]}  Be7 {[%clk 0:02:17]} 16. a4 {[%clk 0:02:04]}  Bd7 {[%clk 0:02:00]} 17. Qd5 {[%clk 0:02:02]}  Be6 {[%clk 0:01:53]} 18. Qd2 {[%clk 0:01:54]}  bxa4 {[%clk 0:01:52]} 19. Be2 {[%clk 0:01:52]}  Rb8 {[%clk 0:01:50]} 20. Nb4 {[%clk 0:01:47]}  Bb3 {[%clk 0:01:48]} 21. Rc1 {[%clk 0:01:27]}  Bg5 {[%clk 0:01:45]} 22. f4 {[%clk 0:01:10]}  Bxf4 {[%clk 0:01:43]} 23. Qd5 {[%clk 0:01:10]}  Bxd5 {[%clk 0:01:38]} 0-1


[Site "https://www.chess.com"]

[Event "Titled Tuesday Blitz March 07 Early 2023"]
[White "Mushini Ajay"]
[Black "Blokhin, Sofia"]
[WhiteFideId "35066188"]
[BlackFideId "4508190"]
[WhiteElo "2145"]
[BlackElo "1994"]
[Result "1/2-1/2"]
[Round "05"]
[TimeControl "180+2"]
[Date "2023.03.07"]
[WhiteClock "0:00:17"]
[BlackClock "0:01:29"]

1. e4 {[%clk 0:03:00]}  c5 {[%clk 0:02:57]} 2. Nf3 {[%clk 0:03:00]}  e6 {[%clk 0:02:56]} 3. d4 {[%clk 0:03:00]}  cxd4 {[%clk 0:02:54]} 4. Nxd4 {[%clk 0:03:00]}  a6 {[%clk 0:02:55]} 5. Bd3 {[%clk 0:02:59]}  Nf6 {[%clk 0:02:54]} 6. O-O {[%clk 0:02:59]}  Qc7 {[%clk 0:02:52]} 7. Qe2 {[%clk 0:02:59]}  Nc6 {[%clk 0:02:53]} 8. Nxc6 {[%clk 0:02:57]}  dxc6 {[%clk 0:02:54]} 9. e5 {[%clk 0:02:52]}  Nd7 {[%clk 0:02:49]} 10. Bf4 {[%clk 0:02:50]}  Bc5 {[%clk 0:02:44]} 11. Nd2 {[%clk 0:02:48]}  O-O {[%clk 0:02:42]} 12. Ne4 {[%clk 0:02:26]}  Bd4 {[%clk 0:02:34]} 13. Nd6 {[%clk 0:01:43]}  Bxb2 {[%clk 0:02:20]} 14. Rab1 {[%clk 0:01:37]}  Ba3 {[%clk 0:02:20]} 15. Rb3 {[%clk 0:01:35]}  Bxd6 {[%clk 0:02:15]} 16. Bxh7+ {[%clk 0:01:31]}  Kxh7 {[%clk 0:02:08]} 17. Qh5+ {[%clk 0:01:30]}  Kg8 {[%clk 0:02:07]} 18. exd6 {[%clk 0:01:15]}  Qd8 {[%clk 0:01:44]} 19. Rh3 {[%clk 0:01:01]}  f5 {[%clk 0:01:37]} 20. Qh7+ {[%clk 0:00:41]}  Kf7 {[%clk 0:01:37]} 21. Qh5+ {[%clk 0:00:18]}  Kg8 {[%clk 0:01:29]} 22. Qh8+ {[%clk 0:00:17]}  Kf7 {[%clk 0:01:29]} 23. Qh5+ {[%clk 0:00:17]}  Kg8 {[%clk 0:01:29]} 1/2-1/2


[Site "https://www.chess.com"]

[Event "Titled Tuesday Blitz March 07 Early 2023"]
[White "Bruned, Boris"]
[Black "Mikhaylova, Irina"]
[WhiteFideId "621790"]
[BlackFideId "4109040"]
[WhiteElo "2049"]
[BlackElo "1966"]
[Result "0-1"]
[Round "05"]
[TimeControl "180+2"]
[Date "2023.03.07"]
[WhiteClock "0:00:01"]
[BlackClock "0:00:13"]

1. b3 {[%clk 0:03:00]}  d5 {[%clk 0:02:57]} 2. Bb2 {[%clk 0:03:01]}  Nf6 {[%clk 0:02:57]} 3. e3 {[%clk 0:03:01]}  g6 {[%clk 0:02:57]} 4. Bxf6 {[%clk 0:02:56]}  exf6 {[%clk 0:02:56]} 5. d4 {[%clk 0:02:51]}  Bd6 {[%clk 0:02:54]} 6. g3 {[%clk 0:02:51]}  h5 {[%clk 0:02:54]} 7. h4 {[%clk 0:02:50]}  Nd7 {[%clk 0:02:43]} 8. Bg2 {[%clk 0:02:50]}  c6 {[%clk 0:02:43]} 9. Ne2 {[%clk 0:02:49]}  f5 {[%clk 0:02:43]} 10. c4 {[%clk 0:02:45]}  Nf6 {[%clk 0:02:23]} 11. Nbc3 {[%clk 0:02:37]}  Be6 {[%clk 0:02:05]} 12. cxd5 {[%clk 0:02:33]}  Bxd5 {[%clk 0:01:55]} 13. Nxd5 {[%clk 0:02:27]}  cxd5 {[%clk 0:01:45]} 14. O-O {[%clk 0:01:58]}  Ne4 {[%clk 0:01:22]} 15. Nf4 {[%clk 0:01:55]}  Bxf4 {[%clk 0:01:11]} 16. exf4 {[%clk 0:01:53]}  O-O {[%clk 0:01:12]} 17. Qd3 {[%clk 0:01:49]}  Rc8 {[%clk 0:01:07]} 18. Rfc1 {[%clk 0:01:48]}  Qb6 {[%clk 0:01:03]} 19. a3 {[%clk 0:01:16]}  a5 {[%clk 0:01:01]} 20. Rab1 {[%clk 0:01:00]}  Kg7 {[%clk 0:01:00]} 21. Bxe4 {[%clk 0:00:29]}  fxe4 {[%clk 0:00:59]} 22. Qe3 {[%clk 0:00:30]}  Rfd8 {[%clk 0:00:42]} 23. Rc5 {[%clk 0:00:17]}  Qe6 {[%clk 0:00:31]} 24. Rbc1 {[%clk 0:00:15]}  b6 {[%clk 0:00:31]} 25. Rxc8 {[%clk 0:00:12]}  Rxc8 {[%clk 0:00:31]} 26. Rc3 {[%clk 0:00:10]}  Qg4 {[%clk 0:00:21]} 27. Qc1 {[%clk 0:00:03]}  Rxc3 {[%clk 0:00:17]} 28. Qxc3 {[%clk 0:00:03]}  Qd1+ {[%clk 0:00:17]} 29. Kg2 {[%clk 0:00:03]}  Kg8 {[%clk 0:00:14]} 30. a4 {[%clk 0:00:04]}  Kg7 {[%clk 0:00:14]} 31. Qe3 {[%clk 0:00:01]}  Qc2 {[%clk 0:00:13]} 0-1


[Site "https://www.chess.com"]